bitfinex/quotes_ETHUSD_20220219
["timestamp","ask_amount","ask_price","bid_price","bid_amount"]
[1645245222621,0.01581998,2817.4,2817.3,0.52]
[1645245222817,0.01581998,2817.4,2817.3,0.93027155]
[1645245223016,0.01581998,2817.4,2817.3,2.70479155]
[1645245223415,0.01581998,2817.4,2817.3,3.70479155]
[1645245223617,0.01581998,2817.4,2817.3,4.74074859]
[1645245223816,0.01581998,2817.4,2817.3,3.70479155]
[1645245224918,0.8539883,2817.4,2817.3,0.63027155]
[1645245225126,0.8539883,2817.4,2817.1,0.00288348]
[1645245225318,3.5,2817.3,2817.1,0.00288348]
[1645245225770,0.8539883,2817.4,2817.1,0.00288348]
[1645245225771,0.85501568,2817.4,2817.1,0.00288348]
[1645245225974,3.5,2817.3,2817.1,0.00288348]
[1645245226371,0.85501568,2817.4,2817.1,0.00288348]
[1645245226775,0.01581998,2817.4,2817.1,0.00288348]
[1645245226973,0.01581998,2817.4,2817.1,0.89031348]
[1645245226974,0.01808123,2817.4,2817.1,0.89031348]
[1645245227176,0.01808123,2817.4,2817.2,0.11009869]
[1645245227776,0.01808123,2817.4,2817.2,1.11009869]
[1645245227974,0.01581998,2817.4,2817.3,0.11009869]
[1645245228173,0.01684855,2817.4,2817.3,0.11009869]
[1645245228575,0.01684855,2817.4,2817.3,2.40487869]
[1645245228872,0.01684855,2817.4,2817.3,2.70487869]
[1645245229072,0.01581998,2817.4,2817.3,3.00487869]
[1645245229323,0.01581998,2817.4,2817.3,4.00487869]
[1645245229519,0.01581998,2817.4,2817.3,3.00487869]
[1645245229720,0.01581998,2817.4,2817.3,4.00487869]
[1645245231722,0.01581998,2817.4,2817.3,7.50487869]
[1645245232522,0.01581998,2817.4,2817.3,7.59099485]
[1645245233270,0.01581998,2817.4,2817.3,4.09099485]
[1645245233467,0.01581998,2817.4,2817.3,4.00487869]
[1645245240124,0.0125658,2817.4,2817.3,4.00487869]
[1645245240574,0.0125658,2817.4,2817.3,4.16008782]
[1645245240771,0.0125658,2817.4,2817.3,7.66008782]
[1645245241174,0.0125658,2817.4,2817.3,7.68537834]
[1645245242573,0.0125658,2817.4,2817.3,7.53016921]
[1645245242973,0.0125658,2817.4,2817.3,12.53016921]
[1645245245026,0.0125658,2817.4,2817.3,23.38016921]
[1645245245432,2.0002158,2817.4,2817.3,30.15453461]
[1645245245629,0.00102961,2817.5,2817.4,22.01126]
[1645245245828,0.0046412,2817.9,2817.4,24.28984636]
[1645245246132,0.0046412,2817.9,2817.6,0.88706]
[1645245246329,0.0046412,2817.9,2817.7,1.49934025]
[1645245246527,0.0046412,2817.9,2817.8,1.88421869]
[1645245246728,0.0046412,2817.9,2817.8,2.70421869]
[1645245246928,0.0092824,2818.2,2817.8,21.28009869]
[1645245247131,0.0092824,2818.2,2818.1,15.85]
[1645245247330,1.0,2819.0,2818.3,10.85]
[1645245247528,1.0,2819.0,2818.5,0.8868035]
[1645245247728,1.0,2819.0,2818.6,2.29372]
[1645245247933,1.0,2819.0,2818.6,2.89372]
[1645245247934,0.90407822,2818.9,2818.6,2.89372]
[1645245248175,1.0,2819.0,2818.6,2.89372]
[1645245248378,1.0,2819.0,2818.7,1.0]
[1645245248573,0.0010266,2818.9,2818.7,2.40685]
[1645245248975,0.0010266,2818.9,2818.8,1.77372]
[1645245249273,0.0010266,2818.9,2818.8,3.77029372]
[1645245249472,0.0010266,2818.9,2818.8,4.89319094]
[1645245249674,1.0,2819.0,2818.8,4.89319094]
[1645245249876,1.0,2819.0,2818.8,4.77029372]
[1645245249877,1.0010266,2819.0,2818.8,4.77029372]
[1645245250377,1.0010266,2819.0,2818.9,0.12199322]
[1645245250572,1.0010266,2819.0,2818.9,0.52]
[1645245250772,1.0,2819.0,2818.9,0.52]
[1645245251173,1.0,2819.0,2818.9,1.45130768]
[1645245251378,1.0,2819.0,2818.9,2.57321625]
[1645245251574,0.91340728,2819.8,2818.9,2.57321625]
[1645245251831,6.38831273,2823.0,2819.2,1.067]
[1645245251832,1.32423787,2821.1,2819.2,1.067]
[1645245252022,0.3,2821.1,2819.5,1.067]
[1645245252222,0.26662186,2821.0,2819.5,1.067]
[1645245252423,1.7738573,2820.8,2819.5,1.067]
[1645245252732,7.49,2820.9,2819.5,1.067]
[1645245252733,0.88689,2820.3,2819.5,1.067]
[1645245252921,0.83307499,2820.0,2819.5,1.067]
[1645245253325,0.8340985,2820.0,2819.5,1.067]
[1645245253521,0.8340985,2820.0,2819.4,5.0]
[1645245253522,0.88796351,2820.0,2819.7,5.0]
[1645245253722,0.88796351,2820.0,2819.8,1.067]
[1645245254425,0.88694,2820.0,2819.8,1.067]
[1645245254624,0.00102351,2820.0,2819.8,6.067]
[1645245254827,0.00102351,2820.0,2819.9,1.067]
[1645245255029,0.00102351,2820.0,2819.9,3.0602]
[1645245255224,0.00102351,2820.0,2819.9,3.5802]
[1645245255570,7.49,2820.9,2819.9,3.5802]
[1645245255771,0.00226711,2820.1,2819.9,3.5802]
[1645245256168,0.00226711,2820.1,2820.0,6.067]
[1645245256368,0.00226711,2820.1,2820.0,8.187]
[1645245256770,1.77322,2821.3,2820.0,8.187]
[1645245256972,2.9977,2821.2,2820.0,3.187]
[1645245257173,2.9977,2821.2,2821.1,1.067]
[1645245257373,0.88655,2821.4,2821.1,1.067]
[1645245257672,1.71962499,2821.4,2821.1,1.067]
[1645245257870,0.88655,2821.4,2821.1,1.067]
[1645245258071,0.01008934,2821.5,2821.1,1.067]
[1645245258270,0.00226577,2821.4,2821.1,1.067]
[1645245258575,0.00226577,2821.4,2821.3,1.067]
[1645245259176,0.83307499,2821.4,2821.3,1.067]
[1645245259431,0.01235506,2821.5,2821.3,6.067]
[1645245260225,0.01235506,2821.5,2820.9,0.88636]
[1645245260226,0.01235506,2821.5,2821.1,4.46156003]
[1645245260426,0.01008934,2821.5,2820.9,1.18636]
[1645245260628,0.01235504,2821.5,2820.9,1.18636]
[1645245261429,0.01235504,2821.5,2820.6,0.1771]
[1645245261638,0.54852931,2821.5,2820.6,0.1771]
[1645245261837,0.00226579,2821.3,2820.6,0.1771]
[1645245262628,0.00226579,2821.3,2820.6,4.63866003]
[1645245262827,0.01008934,2821.5,2820.6,4.63866003]
[1645245263074,0.01008934,2821.5,2820.6,0.1771]
[1645245263075,0.0022659,2821.1,2820.6,0.1771]
[1645245263472,0.0022659,2821.1,2820.7,4.46156003]
[1645245263977,0.0022659,2821.1,2820.6,0.1771]
[1645245264176,0.88655,2821.1,2820.6,0.1771]
[1645245264380,0.00226592,2821.0,2820.6,0.1771]
[1645245265174,1.77318,2821.4,2820.6,4.63866003]
[1645245265373,0.00226597,2820.9,2820.6,4.63866003]
[1645245265772,0.83888597,2821.0,2820.6,4.63866003]
[1645245265972,1.78224252,2821.4,2820.6,4.46156003]
[1645245266472,1.77318,2821.4,2820.4,1.18997443]
[1645245266674,4.08002779,2821.3,2820.2,0.88655]
[1645245266941,4.08002779,2821.3,2820.5,4.46156003]
[1645245267635,0.88652,2821.3,2820.5,4.46156003]
[1645245267844,1.77318,2821.4,2820.2,1.12077877]
[1645245267845,0.88661,2821.0,2820.2,1.12077877]
[1645245268039,0.88661,2821.0,2820.4,4.46156003]
[1645245268437,1.77318,2821.4,2820.7,4.46156003]
[1645245268836,1.77318,2821.4,2820.4,4.46156003]
[1645245269042,0.88652,2821.3,2820.4,4.46156003]
[1645245269237,0.88652,2821.3,2820.3,1.12547223]
[1645245269439,0.88652,2821.3,2820.7,4.46156003]
[1645245270038,0.78652,2821.3,2820.5,4.46156003]
[1645245270241,0.00226588,2821.1,2820.5,4.46156003]
[1645245270440,0.88665,2821.0,2820.5,4.46156003]
[1645245271072,0.88665,2821.0,2820.7,0.0216134]
[1645245271476,0.00226587,2821.0,2820.7,0.0216134]
[1645245271676,0.00226587,2821.0,2820.9,4.46156003]
[1645245272077,0.00226587,2821.0,2820.8,4.46156003]
[1645245272273,0.00226587,2821.0,2820.7,0.0216134]
[1645245272274,0.01008934,2821.5,2820.7,0.0216134]
[1645245272473,2.04511088,2821.4,2820.7,0.0216134]
[1645245272772,0.01008934,2821.5,2820.7,4.48317343]
[1645245272773,0.00226592,2821.0,2820.7,4.48317343]
[1645245273372,0.00226592,2821.0,2820.7,0.0216134]
[1645245273575,0.01915168,2821.5,2820.9,4.46156003]
[1645245273576,0.89652934,2821.5,2820.9,4.46156003]
[1645245273778,0.00226591,2821.0,2820.9,4.46156003]
[1645245274724,0.01008934,2821.5,2820.9,4.46156003]
[1645245274920,0.0022659,2821.1,2820.9,4.46156003]
[1645245275119,1.50604007,2821.6,2820.9,4.46156003]
[1645245275722,1.71943499,2821.7,2820.9,4.46156003]
[1645245275923,0.3547,2821.5,2820.9,4.46156003]
[1645245276223,0.3547,2821.5,2821.1,4.46156003]
[1645245276623,0.3547,2821.5,2820.9,0.02154643]
[1645245276822,0.3547,2821.5,2820.9,4.78310646]
[1645245277023,0.3047,2821.5,2820.9,4.78310646]
[1645245277229,1.19112,2821.5,2820.9,4.78310646]
[1645245277424,1.19112,2821.5,2820.9,4.48310646]
[1645245277824,1.19112,2821.5,2820.9,0.02154643]
[1645245279878,2.07768,2821.5,2821.1,0.00226602]
[1645245280072,1.19112,2821.5,2821.1,0.00226602]
[1645245280272,5.5,2821.4,2820.4,4.63866003]
[1645245280471,1.19112,2821.5,2820.4,4.63866003]
[1645245280472,0.00537911,2821.3,2820.4,4.63866003]
[1645245280871,0.31007911,2821.3,2820.4,4.63866003]
[1645245281075,0.31007911,2821.3,2820.4,4.46156003]
[1645245281273,0.31007911,2821.3,2820.4,1.48648]
[1645245281476,0.31007911,2821.3,2820.6,4.46156003]
[1645245282329,1.19659911,2821.3,2820.6,4.46156003]
[1645245283132,0.31007911,2821.3,2820.4,0.88649]
[1645245283331,0.31007911,2821.3,2820.9,4.46156003]
[1645245283933,0.31007911,2821.3,2820.6,4.46156003]
[1645245284732,0.31007911,2821.3,2820.8,0.00226896]
[1645245285134,0.31007911,2821.3,2820.9,4.46156003]
[1645245285344,0.31007911,2821.3,2821.2,4.46156003]
[1645245285575,0.3047,2821.3,2821.2,4.46156003]
[1645245285775,0.3047,2821.3,2821.2,6.06156003]
[1645245285975,0.30696845,2821.5,2821.2,6.06156003]
[1645245286174,0.00537911,2821.4,2821.2,4.46156003]
[1645245286575,0.00537911,2821.4,2821.0,0.0022689]
[1645245286775,0.00537911,2821.4,2820.9,6.96396003]
[1645245287175,0.00537911,2821.4,2821.0,0.00226897]
[1645245287579,0.00537911,2821.4,2821.2,4.46156003]
[1645245287778,0.00537911,2821.4,2821.0,0.00226897]
[1645245287975,0.00537911,2821.4,2821.2,4.46156003]
[1645245288376,0.00537911,2821.4,2821.0,0.00226897]
[1645245288977,0.3047,2821.3,2821.0,0.00226897]
[1645245289176,0.3047,2821.3,2820.9,6.26396003]
[1645245289430,0.00537911,2821.2,2821.0,0.00219916]
[1645245289629,0.3047,2821.3,2821.0,0.00219916]
[1645245289824,0.00537911,2821.2,2821.0,0.00219916]
[1645245290125,0.3047,2821.3,2821.0,0.00219916]
[1645245290330,0.3047,2821.3,2820.9,1.8024]
[1645245290525,0.00537911,2821.2,2821.0,4.46156003]
[1645245290726,0.3047,2821.3,2821.0,4.76375915]
[1645245290923,0.00537911,2821.2,2821.0,4.76375915]
[1645245291124,0.3047,2821.3,2821.0,4.76375915]
[1645245291327,0.00537911,2821.2,2821.0,4.76375915]
[1645245291625,0.3047,2821.3,2820.9,2.5024]
[1645245291830,0.3047,2821.3,2821.0,0.00219914]
[1645245291831,0.00537911,2821.2,2821.0,0.00219914]
[1645245292027,0.3047,2821.1,2821.0,0.00219914]
[1645245292834,0.3047,2821.1,2820.8,1.48634]
[1645245293078,0.3047,2821.1,2821.0,4.45753375]
[1645245293273,0.3047,2821.1,2821.0,4.75753375]
[1645245293471,0.3047,2821.1,2821.0,5.75753375]
[1645245295070,1.14128078,2821.1,2821.0,6.41012989]
[1645245295476,1.14128078,2821.2,2821.0,6.41012989]
[1645245295673,1.14128078,2821.2,2821.1,0.35259614]
[1645245296074,1.14128078,2821.2,2820.9,0.0018876]
[1645245296271,1.14128078,2821.2,2820.9,0.35499217]
[1645245296472,1.14128078,2821.2,2820.6,0.1771]
[1645245296674,0.00537911,2821.1,2821.0,4.45753375]
[1645245296936,1.14665989,2821.3,2821.0,4.45753375]
[1645245297138,1.14128078,2821.2,2820.9,0.0018974]
[1645245297437,0.00537911,2821.3,2821.1,4.45753375]
[1645245297636,0.3047,2821.4,2821.2,0.35306913]
[1645245297835,1.15003654,2821.3,2821.2,0.35306913]
[1645245298039,1.15003654,2821.3,2821.1,4.45753375]
[1645245298233,0.31007911,2821.3,2821.2,0.35363842]
[1645245298634,0.31007911,2821.3,2821.2,4.81117217]
[1645245298835,1.4493717,2821.3,2821.2,4.81117217]
[1645245300236,1.4493717,2821.3,2821.0,0.00221621]
[1645245300437,1.15005081,2821.2,2821.0,0.00221621]
[1645245300678,1.1446717,2821.1,2821.0,0.00221621]
[1645245300874,0.3047,2821.3,2821.0,0.00221621]
[1645245300875,1.15005081,2821.2,2821.0,0.00221621]
[1645245301075,0.3047,2821.3,2821.1,4.97753375]
[1645245301274,0.3047,2821.4,2821.2,0.65344648]
[1645245301475,0.3047,2821.4,2821.3,4.81098023]
[1645245301678,1.44970243,2821.4,2821.3,4.81098023]
[1645245301875,0.3047,2821.4,2821.3,4.81098023]
[1645245302274,1.44869514,2821.4,2821.3,4.81098023]
[1645245302475,1.4486988,2821.4,2821.3,4.81098023]
[1645245302677,0.3047,2821.4,2821.3,4.81098023]
[1645245302875,1.44875926,2821.4,2821.3,4.81098023]
[1645245303180,1.44874894,2821.4,2821.3,4.81098023]
[1645245303376,0.3047,2821.4,2821.3,4.81098023]
[1645245303576,1.44874969,2821.4,2821.3,4.81098023]
[1645245303776,0.3047,2821.4,2821.3,4.81098023]
[1645245304433,1.44877427,2821.4,2821.3,4.81098023]
[1645245305733,1.44877427,2821.4,2821.3,5.81098023]
[1645245305933,1.44877427,2821.4,2821.3,0.35344648]
[1645245306132,1.44833407,2821.4,2821.3,0.35344648]
[1645245306332,1.44833407,2821.4,2821.3,0.35295763]
[1645245306529,1.44833407,2821.4,2821.3,0.35297483]
[1645245306730,1.44833407,2821.4,2821.3,0.35300424]
[1645245306931,1.44833407,2821.4,2821.2,0.35300424]
[1645245307131,0.3047,2821.4,2821.3,0.35300424]
[1645245307331,0.3047,2821.4,2820.9,5.98783375]
[1645245307332,0.00537911,2821.3,2820.9,1.5303]
[1645245307532,1.14374213,2821.2,2821.1,4.45753375]
[1645245307833,1.14374213,2821.2,2821.1,4.81051105]
[1645245308082,0.00537911,2821.3,2821.1,4.81051105]
[1645245308284,1.14374213,2821.2,2821.0,0.00217121]
[1645245308479,1.14374213,2821.2,2821.0,0.35296223]
[1645245308682,1.14374213,2821.2,2821.0,0.3551334]
[1645245309382,1.14374213,2821.2,2821.1,0.35296223]
[1645245309780,1.14374213,2821.2,2820.7,4.45753375]
[1645245309980,0.00537911,2821.1,2821.0,0.00217114]
[1645245310180,1.14374213,2821.1,2821.0,0.00217114]
[1645245310590,3.501611,2821.1,2821.0,0.88570024]
[1645245310787,0.00537911,2821.4,2821.0,4.81058269]
[1645245310980,0.00537911,2821.4,2821.1,1.02350612]
[1645245311382,0.00537911,2821.4,2821.2,0.35304894]
[1645245311582,0.00219574,2821.5,2821.1,0.35304894]
[1645245311837,0.00219574,2821.5,2821.2,0.35304894]
[1645245312028,0.3047,2821.4,2821.3,0.35304894]
[1645245312828,0.3047,2821.4,2821.3,0.34301597]
[1645245313335,0.2547,2821.4,2821.1,0.34301597]
[1645245313552,0.2547,2821.4,2821.2,0.34301597]
[1645245313553,0.00537911,2821.3,2821.2,0.34301597]
[1645245313728,0.2547,2821.4,2821.2,0.34301597]
[1645245313929,0.2547,2821.4,2821.3,0.34301597]
[1645245314130,0.2547,2821.4,2820.9,0.34301597]
[1645245314430,0.00537911,2821.3,2820.9,0.34301597]
[1645245314629,0.00537911,2821.3,2821.0,4.45753375]
[1645245314838,0.00537911,2821.3,2821.1,0.34301597]
[1645245315029,0.2547,2821.4,2821.1,1.22927597]
[1645245315234,0.00537911,2821.3,2821.2,0.34301597]
[1645245315436,2.20244347,2821.3,2821.2,0.34301597]
[1645245315685,2.45714347,2821.3,2821.2,0.34301597]
[1645245315887,2.45714347,2821.3,2821.2,0.34311546]
[1645245315888,4.23047347,2821.3,2821.2,0.34311546]
[1645245316082,4.23047347,2821.3,2821.0,0.00222176]
[1645245316280,1.42909625,2821.1,2821.0,0.00222176]
[1645245316489,2.88093972,2821.1,2821.0,2.176e-05]
[1645245316680,13.90803972,2821.1,2821.0,2.176e-05]
[1645245316882,15.42803972,2821.1,2820.5,0.34320201]
[1645245317080,0.54246625,2820.6,2819.8,0.92045718]
[1645245317279,1.15184347,2820.5,2819.9,0.34453182]
[1645245317479,1.15184347,2820.5,2820.0,0.34453182]
[1645245318181,1.15184347,2820.5,2820.1,0.34453182]
[1645245318388,1.15184347,2820.5,2820.2,0.34453182]
[1645245318582,1.15184347,2820.5,2820.3,0.34453182]
[1645245318782,0.2547,2820.4,2819.7,0.67045718]
[1645245319630,0.2547,2820.4,2819.2,1.32468729]
[1645245319631,0.54246625,2820.2,2819.8,0.34457283]
[1645245319826,0.54246625,2820.2,2819.4,0.67045718]
[1645245320040,0.54246625,2820.2,2819.5,0.34457283]
[1645245320228,0.54246625,2820.2,2819.5,1.01503001]
[1645245320425,0.54246625,2820.2,2819.6,0.34457283]
[1645245320625,0.54246625,2820.2,2819.7,0.34457283]
[1645245320827,0.54246625,2820.2,2819.8,0.34457283]
[1645245321031,0.54246625,2820.2,2819.9,0.34457283]
[1645245321227,0.54246625,2820.2,2820.0,0.34457283]
[1645245321424,0.54246625,2820.2,2820.1,0.34457283]
[1645245321626,1.69365481,2820.2,2820.1,0.34457283]
[1645245321825,1.69365481,2820.2,2820.0,0.00216479]
[1645245321826,1.14168,2820.1,2820.0,0.00216479]
[1645245322932,1.14168,2820.1,2819.5,0.67045718]
[1645245323180,1.14168,2820.1,2819.9,0.00216481]
[1645245323778,0.54246625,2820.0,2819.9,0.00216481]
[1645245324082,0.54246625,2820.0,2819.1,0.25]
[1645245324083,0.54246625,2820.0,2819.8,7.672e-05]
[1645245324283,0.54246625,2820.0,2819.0,0.67045718]
[1645245324284,11.39246625,2819.9,2819.0,0.67045718]
[1645245324480,11.39246625,2819.9,2818.9,0.67045718]
[1645245324481,1.42979625,2819.2,2818.9,0.67045718]
[1645245324681,1.42979625,2819.2,2818.6,0.67045718]
[1645245324682,1.55453,2819.2,2818.6,0.67045718]
[1645245325284,0.6672,2819.2,2818.6,0.67045718]
[1645245325477,0.6672,2819.2,2818.4,4.45753375]
[1645245325478,0.6672,2819.2,2818.8,0.00191458]
[1645245325878,0.54246625,2819.6,2818.8,0.00191458]
[1645245326182,0.88721,2819.4,2818.8,0.00191458]
[1645245326387,0.88721,2819.4,2818.6,0.67045718]
[1645245326580,0.88721,2819.4,2818.5,0.67045718]
[1645245326581,0.54246625,2819.2,2818.5,0.67045718]
[1645245326837,0.54246625,2819.2,2818.0,0.25]
[1645245326838,0.6296,2819.3,2819.2,3.981e-05]
[1645245327025,1.17206625,2819.3,2819.2,3.981e-05]
[1645245327226,13.79688795,2819.3,2819.2,3.981e-05]
[1645245327432,2.94688795,2819.3,2819.2,3.981e-05]
[1645245327626,4.24688795,2819.3,2819.2,3.981e-05]
[1645245328026,4.50158795,2819.3,2819.2,3.981e-05]
[1645245328227,2.90158795,2819.3,2819.2,3.981e-05]
[1645245328425,13.75158795,2819.3,2819.2,3.981e-05]
[1645245328626,15.35158795,2819.3,2819.2,3.981e-05]
[1645245329028,4.50158795,2819.3,2819.2,3.981e-05]
[1645245330030,15.35158795,2819.3,2819.2,3.981e-05]
[1645245331082,15.50961814,2819.3,2819.2,3.981e-05]
[1645245331785,4.65961814,2819.3,2819.2,3.981e-05]
[1645245332182,15.50961814,2819.3,2819.2,3.981e-05]
[1645245332580,4.80173014,2819.3,2819.2,3.981e-05]
[1645245332979,3.9591217,2819.3,2819.2,3.981e-05]
[1645245333381,2.0295217,2819.3,2819.2,3.981e-05]
[1645245333781,0.2547,2819.3,2819.2,3.981e-05]
[1645245336126,11.1047,2819.3,2819.2,3.981e-05]
[1645245336329,12.93202108,2819.3,2819.2,3.981e-05]
[1645245338287,2.08202108,2819.3,2819.2,3.981e-05]
[1645245338681,2.62448733,2819.3,2819.2,3.981e-05]
[1645245339181,13.65178733,2819.3,2819.2,3.981e-05]
[1645245339385,13.47448733,2819.3,2819.2,3.981e-05]
[1645245339983,12.93202108,2819.3,2819.2,3.981e-05]
[1645245340183,2.08202108,2819.3,2819.2,3.981e-05]
[1645245340482,2.25932108,2819.3,2819.2,3.981e-05]
[1645245342824,2.08202108,2819.3,2819.2,3.981e-05]
[1645245343927,0.78202108,2819.3,2819.2,3.981e-05]
[1645245344129,2.08202108,2819.3,2819.2,3.981e-05]
[1645245344533,0.78202108,2819.3,2819.2,3.981e-05]
[1645245344939,0.78202108,2819.3,2819.2,4.45757356]
[1645245344940,0.2547,2819.3,2819.2,4.45757356]
[1645245345132,0.2547,2819.3,2819.2,4.77961787]
[1645245345330,0.2547,2819.3,2819.2,0.32208412]
[1645245345597,0.2547,2819.3,2819.2,3.981e-05]
[1645245345791,0.2547,2819.7,2819.2,3.981e-05]
[1645245346494,2.02897,2819.7,2819.2,3.981e-05]
[1645245346694,2.02897,2819.7,2819.2,0.3220794]
[1645245346993,0.75684138,2819.7,2819.2,3.981e-05]
[1645245348993,2.53119908,2819.7,2819.2,3.981e-05]
[1645245349832,3.07366533,2819.7,2819.2,3.981e-05]
[1645245350031,0.88719,2819.6,2819.2,3.981e-05]
[1645245350627,0.2547,2819.5,2819.2,3.981e-05]
[1645245350824,0.88718,2819.4,2819.2,3.981e-05]
[1645245353873,0.2547,2819.3,2819.2,3.981e-05]
[1645245357828,0.2547,2819.3,2819.2,0.29923903]
[1645245358031,0.2547,2819.3,2819.2,3.981e-05]
[1645245360576,0.2547,2819.3,2819.2,0.29923903]
[1645245360978,0.2547,2819.3,2819.2,3.981e-05]
[1645245362978,0.2547,2819.3,2819.2,0.29923903]
[1645245363176,0.2547,2819.3,2819.2,3.981e-05]
[1645245364326,0.2547,2819.3,2819.2,0.96969621]
[1645245364527,0.2547,2819.3,2819.2,0.67049699]
[1645245364829,0.2547,2819.3,2819.2,0.29923903]
[1645245365230,0.2547,2819.3,2819.2,3.981e-05]
[1645245366826,1.7744356,2819.4,2819.2,3.981e-05]
[1645245366827,0.42297746,2819.4,2819.2,3.981e-05]
[1645245367326,0.42297746,2819.4,2819.2,0.29923903]
[1645245367524,1.31023306,2819.4,2819.3,0.29919922]
[1645245368974,0.42297746,2819.4,2819.3,0.29919922]
[1645245369775,0.42297746,2819.4,2819.3,0.9696564]
[1645245369977,0.42297746,2819.4,2819.3,0.29919922]
[1645245370379,0.42297746,2819.4,2819.3,0.9696564]
[1645245370778,0.42297746,2819.4,2819.3,0.29919922]
[1645245371376,0.42297746,2819.4,2819.3,0.9696564]
[1645245372334,0.42297746,2819.4,2819.3,0.29919922]
[1645245373536,0.42297746,2819.4,2819.2,3.981e-05]
[1645245373738,1.64987956,2819.4,2819.2,3.981e-05]
[1645245373937,0.42297746,2819.4,2819.2,3.981e-05]
[1645245374339,0.54246625,2819.3,2819.2,3.981e-05]
[1645245374540,11.39246625,2819.3,2819.2,3.981e-05]
[1645245374935,12.39246625,2819.3,2819.2,3.981e-05]
[1645245375778,12.56976625,2819.3,2819.2,3.981e-05]
[1645245376776,12.39246625,2819.3,2819.2,3.981e-05]
[1645245377485,11.73748,2819.0,2818.5,0.6721033]
[1645245377683,0.54246625,2818.8,2818.0,1.1335291]
[1645245377887,0.54246625,2818.8,2818.0,0.8835291]
[1645245378090,11.39246625,2818.8,2818.0,0.8835291]
[1645245378282,1.00329614,2818.1,2818.0,0.8835291]
[1645245378582,1.00329614,2818.1,2817.9,0.8835291]
[1645245379630,1.00329614,2818.1,2817.9,0.88472823]
[1645245379826,0.88757,2818.2,2818.0,4.45753375]
[1645245380031,0.8875,2818.7,2818.2,0.5947515]
[1645245380032,1.77492,2818.7,2818.2,0.5947515]
[1645245380228,0.887385,2819.0,2818.3,0.89552675]
[1645245380435,10.0979,2819.1,2818.4,0.89552675]
[1645245380931,0.87781233,2818.9,2818.3,0.89672569]
[1645245381130,0.8874,2819.0,2818.3,0.89672569]
[1645245381131,0.92334522,2818.4,2818.3,0.00119894]
[1645245381829,0.92334522,2818.4,2818.2,1.49027825]
[1645245382028,0.92334522,2818.4,2818.2,1.492483]
[1645245382935,0.92334522,2818.4,2818.2,0.5947515]
[1645245383185,0.92334522,2818.4,2818.2,0.59685796]
[1645245384173,0.92334522,2818.4,2818.2,0.5947515]
[1645245384374,0.92334522,2818.4,2818.2,0.59685796]
[1645245385278,0.92334522,2818.4,2818.2,0.5947515]
[1645245385680,0.92334522,2818.4,2818.2,0.59685796]
[1645245386475,0.92334522,2818.4,2818.2,0.5947515]
[1645245386935,1.775,2818.5,2818.2,0.5968368]
[1645245386936,1.0918231,2818.5,2818.2,0.5968368]
[1645245387135,1.01418674,2818.3,2818.2,0.5968368]
[1645245387733,1.01418674,2818.3,2818.2,0.5947515]
[1645245388536,1.01418674,2818.3,2818.2,1.26606706]
[1645245389535,1.01418674,2818.3,2818.2,0.5947515]
[1645245391079,1.01418674,2818.3,2818.2,1.26606706]
[1645245393581,1.01418674,2818.3,2818.2,0.81844001]
[1645245394326,1.01418674,2818.3,2818.2,1.48943751]
[1645245394527,1.01418674,2818.3,2818.2,0.81844001]
[1645245396131,1.01418674,2818.3,2818.2,1.48941561]
[1645245396530,1.01418674,2818.3,2818.2,0.81844001]
[1645245396830,1.01418674,2818.3,2818.2,1.48941561]
[1645245397233,1.01418674,2818.3,2818.2,0.81844001]
[1645245398776,0.88747,2818.5,2818.2,0.81844001]
[1645245398977,0.88747,2818.5,2818.3,0.22368851]
[1645245399176,0.88747,2818.5,2818.4,0.22368851]
[1645245399177,0.859656,2818.5,2818.4,0.22368851]
[1645245399978,9.0,2818.4,2818.3,0.00208795]
[1645245400977,9.0,2818.4,2818.2,0.5947515]
[1645245401187,9.0,2818.4,2818.2,0.59683948]
[1645245401578,9.0,2818.4,2818.2,0.34683948]
[1645245402027,9.887566,2818.4,2818.2,0.34683948]
[1645245402226,9.887566,2818.4,2818.2,0.3447515]
[1645245403223,9.0,2818.4,2818.2,0.3447515]
[1645245403426,2.65077173,2818.5,2818.2,0.3447515]
[1645245403427,1.76323173,2818.5,2818.2,0.3447515]
[1645245404929,1.76323173,2818.5,2818.2,0.3470288]
[1645245405328,2.65078173,2818.5,2818.2,0.3470288]
[1645245405778,2.65078173,2818.5,2818.2,0.3447515]
[1645245405978,2.65078173,2818.5,2818.2,0.3470288]
[1645245406980,1.91159656,2818.5,2818.2,0.3447515]
[1645245407180,1.91159656,2818.5,2818.2,0.3470288]
[1645245408080,1.91159656,2818.5,2818.2,0.3447515]
[1645245408280,1.91159656,2818.5,2818.2,0.3470288]
[1645245409322,1.91159656,2818.5,2818.2,0.3447515]
[1645245409524,1.91159656,2818.5,2818.2,0.3470288]
[1645245409926,1.76323173,2818.5,2818.2,0.3470288]
[1645245410526,1.76323173,2818.5,2818.2,0.3447515]
[1645245410927,1.76323173,2818.5,2818.2,0.3470288]
[1645245411430,1.76323173,2818.5,2818.4,4.45753375]
[1645245411829,1.76323173,2818.5,2818.2,0.3447515]
[1645245412030,1.76323173,2818.5,2818.3,0.00227725]
[1645245412935,1.76323173,2818.5,2818.2,0.3447515]
[1645245413183,4.42586103,2818.5,2818.3,0.00227728]
[1645245413380,3.53831103,2818.5,2818.3,0.00227728]
[1645245414181,3.53831103,2818.5,2818.2,0.3447515]
[1645245414377,3.53831103,2818.5,2818.3,0.00227728]
[1645245415380,3.53831103,2818.5,2818.2,0.3447515]
[1645245415579,3.53831103,2818.5,2818.3,0.00208816]
[1645245416480,3.53831103,2818.5,2818.2,0.3447515]
[1645245416930,3.53831103,2818.5,2818.3,0.00208816]
[1645245417526,4.42587103,2818.5,2818.3,0.00208816]
[1645245417727,4.42587103,2818.5,2818.2,0.3447515]
[1645245417926,4.42587103,2818.5,2818.3,0.00208816]
[1645245418926,4.42587103,2818.5,2818.2,0.3447515]
[1645245419233,4.42587103,2818.5,2818.3,0.00208816]
[1645245420128,1.30567179,2818.4,2818.3,0.19476046]
[1645245420329,1.30567179,2818.4,2818.3,0.19687611]
[1645245420782,9.0,2818.3,2818.2,5.15e-05]
[1645245421181,10.0,2818.3,2818.2,5.15e-05]
[1645245421381,11.72689851,2818.3,2818.2,5.15e-05]
[1645245421785,24.89476476,2818.3,2818.2,5.15e-05]
[1645245421984,26.12631182,2818.3,2818.2,5.15e-05]
[1645245422186,25.23736476,2818.3,2818.2,5.15e-05]
[1645245422381,1.07582211,2817.1,2816.9,1.1433]
[1645245422582,1.96370211,2817.1,2816.8,3.1707]
[1645245423181,1.96370211,2817.1,2816.7,0.6709756]
[1645245423588,1.96370211,2817.1,2816.6,7.49]
[1645245423786,1.96370211,2817.1,2816.6,8.1609756]
[1645245423984,1.96370211,2817.1,2816.8,0.00227795]
[1645245424934,2.85167421,2817.1,2816.6,7.49]
[1645245425131,2.85167421,2817.1,2816.8,0.00227793]